fUST/lending_fUST_20260421
["ID","MTS","AMOUNT","RATE_DAILY","PERIOD"]
[420924447,1776735040644,-500.0,0.00014044,2]
[420924449,1776735040653,-500.0,0.00014044,2]
[420924451,1776735040663,-500.0,0.00014044,2]
[420924453,1776735040673,-500.0,0.00014044,2]
[420924455,1776735040683,-500.0,0.00014044,2]
[420924457,1776735040693,-500.0,0.00014044,2]
[420924459,1776735040702,-500.0,0.00014044,2]
[420924461,1776735040712,-500.0,0.00014044,2]
[420924463,1776735040722,-500.0,0.00014044,2]
[420924465,1776735040731,-500.0,0.00014044,2]
[420924467,1776735040741,-500.0,0.00014044,2]
[420924469,1776735040751,-500.0,0.00014044,2]
[420924471,1776735040760,-500.0,0.00014044,2]
[420924473,1776735040770,-210.0,0.00014044,2]
[420924475,1776735040780,-1876.05,0.00014044,2]
[420924477,1776735040789,-160.0,0.000141,3]
[420924479,1776735040799,-160.0,0.000141,4]
[420924481,1776735040809,-160.0,0.000141,4]
[420924483,1776735040821,-821.0,0.00014108,2]
[420924486,1776735040831,-160.0,0.00014139,2]
[420924487,1776735040841,-783.292447,0.00014139,2]
[420924489,1776735040851,-1406.584894,0.00014139,2]
[420924492,1776735040860,-500.0,0.00014148,2]
[420924494,1776735040870,-221.309688,0.00014171,7]
[420924496,1776735040880,-160.0,0.00014226,7]
[420924498,1776735040889,-2752.940922,0.00014226,7]
[420924500,1776735040899,-5345.881845,0.00014226,7]
[420924502,1776735040908,-1140.0,0.00014247,2]
[420924504,1776735040917,-151.0,0.000143,4]
[420924506,1776735040927,-1507.555656,0.00014315,2]
[420924508,1776735040936,-821.0,0.00014353,2]
[420924510,1776735040945,-349.23052,0.00014363,2]
[420924512,1776735040955,-1569.5059102,0.00014374,2]
[420924514,1776735040964,-160.0,0.0001441,3]
[420924515,1776735040973,-821.0,0.00014428,2]
[420924517,1776735040982,-186.554,0.0001446,2]
[420924519,1776735040991,-151.0,0.00014491,2]
[420924522,1776735041002,-151.0,0.00014491,2]
[420924524,1776735041011,-151.0,0.00014491,2]
[420924526,1776735041021,-151.0,0.00014491,2]
[420924528,1776735041030,-151.0,0.00014491,2]
[420924530,1776735041040,-151.0,0.00014491,2]
[420924531,1776735041049,-296.969,0.00014512,2]
[420924533,1776735041059,-335.83004427,0.00014516,2]
[420924535,1776735041068,-2085.5243732,0.00014545,2]
[420924537,1776735041077,-821.0,0.00014563,2]
[420924539,1776735041087,-500.70567814,0.00014568,2]
[420924541,1776735041096,-2000.0,0.00014584,2]
[420924543,1776735041105,-2000.0,0.00014584,2]
[420924545,1776735041114,-151.0,0.000146,5]
[420924547,1776735041123,-157.708927,0.00014658,2]
[420924549,1776735041133,-821.0,0.00014673,2]
[420924551,1776735041142,-1162.7593265,0.000147,2]
[420924553,1776735041151,-821.0,0.00014735,2]
[420924555,1776735041160,-350.2041051,0.00014741,2]
[420924557,1776735041170,-256.97531939,0.00014767,2]
[420924559,1776735041180,-455.701244,0.00014768,2]
[420924561,1776735041189,-461.9979673,0.00014768,2]
[420924563,1776735041198,-1140.0,0.00014795,2]
[420924565,1776735041208,-151.0,0.000148,2]
[420924567,1776735041217,-160.0,0.00014812,4]
[420924569,1776735041227,-1068.126064,0.00014846,2]
[420924571,1776735041236,-349.23052,0.000149,2]
[420924573,1776735041246,-1083.70370371,0.000149,2]
[420924575,1776735041255,-1083.7037037,0.000149,2]
[420924577,1776735041265,-1083.7037037,0.000149,2]
[420924579,1776735041274,-155.0,0.00014926,2]
[420924581,1776735041284,-3754.010348,0.00014937,7]
[420924583,1776735041293,-465.3433873,0.00014949,2]
[420924585,1776735041303,-155.0,0.00014999,2]
[420924587,1776735041313,-6831.72881926,0.00015,2]
[420924589,1776735041323,-1069.75785612,0.00015,2]
[420924591,1776735041332,-43657.31197826,0.00015,2]
[420924593,1776735041341,-999.50659122,0.00015,2]
[420924595,1776735041351,-7251.6007096,0.00015,7]
[420924597,1776735041360,-151.0,0.00015,2]
[420924599,1776735041369,-173.034751,0.00015,2]
[420924601,1776735041379,-173.034751,0.00015,2]
[420924603,1776735041388,-173.034751,0.00015,2]
[420924605,1776735041398,-173.034751,0.00015,2]
[420924607,1776735041407,-168.355801,0.00015,2]
[420924609,1776735041416,-168.355801,0.00015,2]
[420924611,1776735041425,-168.355801,0.00015,2]
[420924613,1776735041435,-168.355801,0.00015,2]
[420924615,1776735041446,-151.0,0.00015,2]
[420924617,1776735041455,-151.0,0.00015,2]
[420924619,1776735041464,-151.0,0.00015,2]
[420924621,1776735041473,-151.0,0.00015,2]
[420924623,1776735041482,-151.0,0.00015,2]
[420924625,1776735041492,-151.0,0.00015,2]
[420924627,1776735041501,-164.183062,0.00015,2]
[420924629,1776735041510,-625.914205,0.00015,2]
[420924631,1776735041520,-625.914205,0.00015,2]
[420924633,1776735041530,-625.914205,0.00015,2]
[420924635,1776735041538,-625.914205,0.00015,2]
[420924637,1776735041548,-648.671084,0.00015,2]
[420924639,1776735041557,-648.671084,0.00015,2]
[420924641,1776735041566,-648.671084,0.00015,2]
[420924643,1776735041575,-648.671084,0.00015,2]
[420924645,1776735041585,-151.0,0.00015,2]
[420924647,1776735041595,-195.3442,0.00015,2]
[420924649,1776735041603,-151.0,0.00015,2]
[420924651,1776735041617,-151.0,0.00015,2]
[420924653,1776735041625,-160.0,0.00015035,7]
[420924655,1776735041635,-5144.52488736,0.00015051,3]
[420924657,1776735041644,-550.04212474,0.00015068,2]
[420924659,1776735041654,-939.33,0.00015068,2]
[420924661,1776735041663,-519.24,0.00015068,2]
[420924663,1776735041672,-2092.51,0.00015068,2]
[420924665,1776735041681,-500.0,0.00015068,2]
[420924667,1776735041690,-500.0,0.00015068,2]
[420924669,1776735041699,-528.23,0.00015068,2]
[420924671,1776735041709,-1690.89,0.00015068,2]
[420924673,1776735041718,-3778.88,0.00015068,2]
[420924675,1776735041728,-151.0,0.00015068,2]
[420924677,1776735041739,-151.119639,0.00015068,2]
[420924679,1776735041748,-151.0,0.00015068,2]
[420924681,1776735041758,-151.0,0.00015068,2]
[420924683,1776735041767,-718.651535,0.00015068,2]
[420924685,1776735041776,-200.0,0.000151,2]
[420924687,1776735041785,-151.0,0.000151,2]
[420924689,1776735041794,-31910.80267473,0.000151,2]
[420924691,1776735041803,-507.89637342,0.00015132,2]
[420924692,1776735041812,-2500.0,0.00015132,2]
[420924694,1776735041822,-505.68741874,0.0001517,2]
[420924696,1776735041831,-500.0,0.0001517,2]
[420924698,1776735041840,-821.0,0.00015186,2]
[420924701,1776735041850,-155.0,0.00015199,2]
[420924702,1776735041859,-200.0,0.00015199,2]
[420924704,1776735041868,-200.0,0.00015199,2]
[420924706,1776735041877,-169594.6259192,0.000152,2]
[420924708,1776735041891,-6831.72881926,0.000152,2]
[420924710,1776735041900,-1069.75785612,0.000152,2]
[420924712,1776735041909,-151.0,0.000152,2]
[420924714,1776735041918,-151.0,0.000152,2]
[420924716,1776735041927,-151.0,0.000152,2]
[420924719,1776735041937,-151.0,0.000152,2]
[420924721,1776735041947,-151.0,0.000152,2]
[420924722,1776735041957,-151.0,0.000152,2]
[420924724,1776735041966,-151.0,0.000152,2]
[420924726,1776735041975,-151.0,0.000152,2]
[420924728,1776735041984,-283.413305,0.000152,2]
[420924730,1776735041993,-151.0,0.000152,2]
[420924732,1776735042002,-173.034751,0.000152,2]
[420924734,1776735042011,-173.034751,0.000152,2]
[420924736,1776735042021,-173.034751,0.000152,2]
[420924738,1776735042030,-173.034751,0.000152,2]
[420924740,1776735042039,-168.355801,0.000152,2]
[420924742,1776735042048,-168.355801,0.000152,2]
[420924744,1776735042058,-168.355801,0.000152,2]
[420924746,1776735042067,-168.355801,0.000152,2]
[420924748,1776735042077,-151.0,0.000152,2]
[420924750,1776735042086,-151.0,0.000152,2]
[420924752,1776735042096,-151.0,0.000152,2]
[420924754,1776735042104,-151.0,0.000152,2]
[420924756,1776735042114,-151.0,0.000152,2]
[420924758,1776735042123,-151.0,0.000152,2]
[420924760,1776735042132,-625.914205,0.000152,2]
[420924762,1776735042140,-625.914205,0.000152,2]
[420924764,1776735042150,-625.914205,0.000152,2]
[420924766,1776735042159,-625.914205,0.000152,2]
[420924768,1776735042168,-648.671084,0.000152,2]
[420924770,1776735042177,-648.671084,0.000152,2]
[420924772,1776735042186,-648.671084,0.000152,2]
[420924774,1776735042196,-648.671084,0.000152,2]
[420924776,1776735042205,-151.0,0.000152,2]
[420924778,1776735042214,-151.0,0.000152,2]
[420924780,1776735042223,-151.0,0.000152,2]
[420924782,1776735042232,-155.0,0.00015213,2]
[420924784,1776735042241,-160.0,0.00015214,5]
[420924786,1776735042249,-1000.0,0.0001523,2]
[420924788,1776735042259,-244.0,0.0001523,2]
[420924790,1776735042268,-6831.72881926,0.000153,2]
[420924792,1776735042277,-1069.75785612,0.000153,2]
[420924794,1776735042286,-821.0,0.00015313,2]
[420924796,1776735042295,-328.53644256,0.00015341,2]
[420924798,1776735042303,-500.0,0.00015342,2]
[420924800,1776735042312,-500.0,0.00015342,2]
[420924802,1776735042321,-500.0,0.00015342,2]
[420924804,1776735042331,-500.0,0.00015342,2]
[420924807,1776735042340,-500.0,0.00015342,2]
[420924810,1776735042349,-500.0,0.00015342,2]
[420924813,1776735042358,-500.0,0.00015342,2]
[420924817,1776735042368,-500.0,0.00015342,2]
[420924820,1776735042376,-550.2,0.00015342,2]
[420924823,1776735042386,-500.0,0.00015342,2]
[420924826,1776735042396,-500.0,0.00015342,2]
[420924828,1776735042405,-555.17,0.00015342,2]
[420924830,1776735042414,-500.0,0.00015342,2]
[420924832,1776735042423,-500.0,0.00015342,2]
[420924834,1776735042432,-500.0,0.00015342,2]
[420924835,1776735042441,-500.0,0.00015342,2]
[420924837,1776735042450,-566.33,0.00015342,2]
[420924839,1776735042459,-500.0,0.00015342,2]
[420924841,1776735042468,-500.0,0.00015342,2]
[420924843,1776735042477,-700.65,0.00015342,2]
[420924845,1776735042487,-663.16,0.00015342,2]
[420924849,1776735042497,-500.0,0.00015342,2]
[420924851,1776735042506,-500.0,0.00015342,2]
[420924852,1776735042515,-1395.49,0.00015342,2]
[420924853,1776735042525,-500.0,0.00015342,2]
[420924854,1776735042534,-500.0,0.00015342,2]
[420924855,1776735042544,-500.0,0.00015342,2]
[420924856,1776735042553,-915.61,0.00015342,2]
[420924857,1776735042565,-500.0,0.00015342,2]
[420924858,1776735042574,-500.0,0.00015342,2]
[420924859,1776735042583,-500.0,0.00015342,2]
[420924860,1776735042593,-500.0,0.00015342,2]
[420924861,1776735042602,-500.0,0.00015342,2]
[420924862,1776735042612,-500.0,0.00015342,2]
[420924863,1776735042621,-500.0,0.00015342,2]
[420924864,1776735042630,-500.0,0.00015342,2]
[420924865,1776735042640,-500.0,0.00015342,2]
[420924866,1776735042649,-500.0,0.00015342,2]
[420924868,1776735042659,-500.0,0.00015342,2]
[420924869,1776735042668,-1554.06,0.00015342,2]
[420924870,1776735042677,-500.0,0.00015342,2]
[420924871,1776735042686,-500.0,0.00015342,2]
[420924872,1776735042695,-582.68,0.00015342,2]
[420924873,1776735042704,-5611.23,0.00015342,2]
[420924874,1776735042713,-500.0,0.00015342,2]
[420924875,1776735042723,-500.0,0.00015342,2]
[420924876,1776735042732,-500.0,0.00015342,2]
[420924877,1776735042742,-8913.81,0.00015342,2]
[420924878,1776735042751,-500.0,0.00015342,2]
[420924879,1776735042760,-500.0,0.00015342,2]
[420924880,1776735042769,-500.0,0.00015342,2]
[420924881,1776735042778,-1546.18,0.00015342,2]
[420924882,1776735042788,-7372.06,0.00015342,2]
[420924883,1776735042797,-6200.61,0.00015342,2]
[420924884,1776735042806,-559.35706458,0.00015342,2]
[420924885,1776735042816,-578.24,0.00015342,2]
[420924886,1776735042825,-585.09,0.00015342,2]
[420924887,1776735042833,-947.65,0.00015342,2]
[420924888,1776735042843,-500.0,0.00015342,2]
[420924890,1776735042852,-500.0,0.00015342,2]
[420924892,1776735042860,-500.0,0.00015342,2]
[420924893,1776735042869,-500.0,0.00015342,2]
[420924895,1776735042879,-500.0,0.00015342,2]
[420924897,1776735042888,-500.0,0.00015342,2]
[420924899,1776735042897,-500.0,0.00015342,2]
[420924901,1776735042907,-755.07,0.00015342,2]
[420924903,1776735042916,-500.0,0.00015342,2]
[420924906,1776735042926,-500.0,0.00015342,2]
[420924907,1776735042935,-500.0,0.00015342,2]
[420924909,1776735042944,-1858.23,0.00015342,2]
[420924911,1776735042954,-736.57,0.00015342,2]
[420924913,1776735042963,-683.84,0.00015342,2]
[420924915,1776735042972,-3391.67,0.00015342,2]
[420924917,1776735042981,-2845.63,0.00015342,2]
[420924919,1776735042990,-942.56,0.00015342,2]
[420924921,1776735042999,-500.0,0.00015342,2]
[420924923,1776735043008,-500.0,0.00015342,2]
[420924925,1776735043017,-500.0,0.00015342,2]
[420924927,1776735043026,-931.87,0.00015342,2]
[420924929,1776735043036,-1468.68,0.00015342,2]
[420924931,1776735043045,-1208.98,0.00015342,2]
[420924933,1776735043054,-909.52,0.00015342,2]
[420924935,1776735043063,-500.0,0.00015342,2]
[420924937,1776735043073,-634.37,0.00015342,2]
[420924939,1776735043082,-500.0,0.00015342,2]
[420924941,1776735043092,-1393.62,0.00015342,2]
[420924943,1776735043101,-1631.25,0.00015342,2]
[420924945,1776735043110,-1034.79,0.00015342,2]
[420924947,1776735043119,-5412.07,0.00015342,2]
[420924949,1776735043128,-1333.09,0.00015342,2]
[420924951,1776735043137,-500.0,0.00015342,2]
[420924953,1776735043146,-1055.62,0.00015342,2]
[420924955,1776735043155,-2738.88,0.00015342,2]
[420924957,1776735043164,-2731.89,0.00015342,2]
[420924959,1776735043174,-500.0,0.00015342,2]
[420924961,1776735043183,-2600.62,0.00015342,2]
[420924963,1776735043192,-2254.44,0.00015342,2]
[420924965,1776735043201,-500.0,0.00015342,2]
[420924967,1776735043210,-2088.86,0.00015342,2]
[420924968,1776735043219,-500.0,0.00015342,2]
[420924970,1776735043228,-3845.39,0.00015342,2]
[420924972,1776735043237,-750.4,0.00015342,2]
[420924974,1776735043246,-2809.13,0.00015342,2]
[420924976,1776735043255,-5431.02,0.00015342,2]
[420924978,1776735043264,-500.0,0.00015342,2]
[420924981,1776735043275,-500.0,0.00015342,2]
[420924983,1776735043284,-500.0,0.00015342,2]
[420924984,1776735043293,-844.1,0.00015342,2]
[420924986,1776735043303,-764.76,0.00015342,2]
[420924988,1776735043313,-500.0,0.00015342,2]
[420924990,1776735043322,-628.08,0.00015342,2]
[420924993,1776735043332,-2080.85,0.00015342,2]
[420924994,1776735043341,-2269.79,0.00015342,2]
[420924996,1776735043351,-5859.1,0.00015342,2]
[420924998,1776735043361,-500.0,0.00015342,2]
[420925000,1776735043371,-500.0,0.00015342,2]
[420925002,1776735043380,-500.0,0.00015342,2]
[420925004,1776735043390,-4245.16,0.00015342,2]
[420925006,1776735043401,-701.39,0.00015342,2]
[420925008,1776735043414,-915.33,0.00015342,2]
[420925012,1776735043425,-3796.29,0.00015342,2]
[420925015,1776735043436,-500.0,0.00015342,2]
[420925018,1776735043446,-23822.54,0.00015342,2]
[420925020,1776735043456,-1937.17,0.00015342,2]
[420925023,1776735043466,-939.33,0.00015342,2]
[420925026,1776735043475,-519.24,0.00015342,2]
[420925028,1776735043484,-2092.51,0.00015342,2]
[420925030,1776735043493,-500.0,0.00015342,2]
[420925032,1776735043503,-500.0,0.00015342,2]
[420925034,1776735043512,-528.23,0.00015342,2]
[420925036,1776735043521,-1690.89,0.00015342,2]
[420925038,1776735043530,-3778.88,0.00015342,2]
[420925040,1776735043540,-1209.507,0.00015342,2]
[420925042,1776735043549,-151.0,0.00015342,2]
[420925044,1776735043558,-151.0,0.00015342,2]
[420925046,1776735043567,-151.0,0.00015342,2]
[420925048,1776735043576,-151.0,0.00015342,2]
[420925050,1776735043586,-151.0,0.00015342,2]
[420925052,1776735043595,-200.800362,0.00015342,2]
[420925054,1776735043605,-151.0,0.00015342,2]
[420925056,1776735043614,-151.0,0.00015342,2]
[420925058,1776735043623,-151.0,0.00015342,2]
[420925060,1776735043633,-173.034751,0.00015342,2]
[420925062,1776735043642,-173.034751,0.00015342,2]
[420925064,1776735043652,-173.034751,0.00015342,2]
[420925066,1776735043661,-173.034751,0.00015342,2]
[420925068,1776735043670,-168.355801,0.00015342,2]
[420925070,1776735043680,-168.355801,0.00015342,2]
[420925072,1776735043689,-168.355801,0.00015342,2]
[420925074,1776735043698,-168.355801,0.00015342,2]
[420925076,1776735043707,-151.0,0.00015342,2]
[420925078,1776735043716,-151.0,0.00015342,2]
[420925080,1776735043725,-151.0,0.00015342,2]
[420925082,1776735043734,-151.0,0.00015342,2]
[420925084,1776735043743,-151.0,0.00015342,2]
[420925086,1776735043752,-625.914205,0.00015342,2]
[420925088,1776735043761,-625.914205,0.00015342,2]
[420925090,1776735043770,-625.914205,0.00015342,2]
[420925092,1776735043779,-625.914205,0.00015342,2]
[420925094,1776735043788,-648.671084,0.00015342,2]
[420925096,1776735043797,-648.671084,0.00015342,2]
[420925097,1776735043806,-648.671084,0.00015342,2]
[420925099,1776735043815,-648.671084,0.00015342,2]
[420925101,1776735043825,-151.0,0.00015342,2]
[420925103,1776735043834,-151.0,0.00015342,2]
[420925105,1776735043844,-151.0,0.00015342,2]
[420925107,1776735043853,-204.2,0.00015342,2]
[420925109,1776735043862,-1140.0,0.00015342,2]
[420925111,1776735043872,-500.51700427,0.00015375,2]
[420925113,1776735043881,-500.0,0.00015375,2]
[420925115,1776735043890,-155.0,0.00015428,2]
[420925117,1776735043899,-349.23052,0.00015437,2]
[420925119,1776735043908,-331.94739799,0.00015462,2]
[420925121,1776735043917,-628.68315748,0.00015468,2]
[420925123,1776735043926,-4178.16233168,0.00015481,2]
[420925125,1776735043936,-6831.72881926,0.000155,2]
[420925127,1776735043945,-1069.75785612,0.000155,2]
[420925129,1776735043954,-821.0,0.00015506,2]
[420925147,1776735044111,-6831.72881926,0.000156,2]
[420925149,1776735044121,-1069.75785612,0.000156,2]
[420925151,1776735044130,-1973.10958968,0.000156,2]
[420925153,1776735044139,-500.0,0.00015616,2]
[420925155,1776735044148,-500.0,0.00015616,2]
[420925157,1776735044158,-583.95,0.00015616,2]
[420925159,1776735044167,-500.0,0.00015616,2]
[420925161,1776735044176,-500.0,0.00015616,2]
[420925163,1776735044185,-500.0,0.00015616,2]
[420925165,1776735044194,-500.0,0.00015616,2]
[420925167,1776735044203,-500.0,0.00015616,2]
[420925169,1776735044212,-550.2,0.00015616,2]
[420925171,1776735044222,-500.0,0.00015616,2]
[420925173,1776735044231,-500.0,0.00015616,2]
[420925175,1776735044241,-555.17,0.00015616,2]
[420925177,1776735044250,-500.0,0.00015616,2]
[420925179,1776735044259,-500.0,0.00015616,2]
[420925181,1776735044269,-500.0,0.00015616,2]
[420925182,1776735044278,-500.0,0.00015616,2]
[420925184,1776735044287,-566.33,0.00015616,2]
[420925186,1776735044296,-448.29,0.00015616,2]
[420925189,1776735044308,-500.0,0.00015616,2]
[420925191,1776735044329,-700.65,0.00015616,2]
[420925193,1776735044350,-663.16,0.00015616,2]
[420925195,1776735044359,-500.0,0.00015616,2]
[420925197,1776735044369,-500.0,0.00015616,2]
[420925199,1776735044379,-1395.49,0.00015616,2]
[420925201,1776735044389,-500.0,0.00015616,2]
[420925203,1776735044400,-500.0,0.00015616,2]
[420925205,1776735044411,-194.37596119,0.00015616,2]
[420925207,1776735044420,-915.61,0.00015616,2]
[420925209,1776735044430,-500.0,0.00015616,2]
[420925211,1776735044438,-500.0,0.00015616,2]
[420925213,1776735044448,-500.0,0.00015616,2]
[420925215,1776735044457,-500.0,0.00015616,2]
[420925217,1776735044467,-500.0,0.00015616,2]
[420925219,1776735044476,-500.0,0.00015616,2]
[420925221,1776735044485,-500.0,0.00015616,2]
[420925222,1776735044494,-500.0,0.00015616,2]
[420925224,1776735044503,-500.0,0.00015616,2]
[420925226,1776735044512,-500.0,0.00015616,2]
[420925228,1776735044522,-500.0,0.00015616,2]
[420925230,1776735044531,-1554.06,0.00015616,2]
[420925232,1776735044540,-500.0,0.00015616,2]
[420925234,1776735044549,-500.0,0.00015616,2]
[420925236,1776735044559,-582.68,0.00015616,2]
[420925238,1776735044571,-5611.23,0.00015616,2]
[420925240,1776735044580,-500.0,0.00015616,2]
[420925242,1776735044590,-500.0,0.00015616,2]
[420925244,1776735044599,-500.0,0.00015616,2]
[420925246,1776735044609,-8913.81,0.00015616,2]
[420925248,1776735044618,-500.0,0.00015616,2]
[420925250,1776735044628,-500.0,0.00015616,2]
[420925253,1776735044638,-500.0,0.00015616,2]
[420925254,1776735044648,-1546.18,0.00015616,2]
[420925257,1776735044657,-7372.06,0.00015616,2]
[420925258,1776735044667,-6200.61,0.00015616,2]
[420925260,1776735044676,-578.24,0.00015616,2]
[420925262,1776735044685,-585.09,0.00015616,2]
[420925265,1776735044696,-947.65,0.00015616,2]
[420925267,1776735044706,-500.0,0.00015616,2]
[420925268,1776735044715,-351.48121844,0.00015616,2]
[420925271,1776735044725,-500.0,0.00015616,2]
[420925273,1776735044734,-500.0,0.00015616,2]
[420925275,1776735044744,-500.0,0.00015616,2]
[420925276,1776735044753,-500.0,0.00015616,2]
[420925279,1776735044763,-500.0,0.00015616,2]
[420925280,1776735044772,-755.07,0.00015616,2]
[420925282,1776735044781,-500.0,0.00015616,2]
[420925284,1776735044791,-500.0,0.00015616,2]
[420925286,1776735044800,-540.47780611,0.00015616,2]
[420925288,1776735044811,-736.57,0.00015616,2]
[420925290,1776735044821,-1858.23,0.00015616,2]
[420925292,1776735044830,-683.84,0.00015616,2]
[420925294,1776735044840,-3391.67,0.00015616,2]
[420925296,1776735044850,-2845.63,0.00015616,2]
[420925297,1776735044859,-942.56,0.00015616,2]
[420925298,1776735044868,-500.0,0.00015616,2]
[420925299,1776735044878,-500.0,0.00015616,2]
[420925300,1776735044887,-500.0,0.00015616,2]
[420925301,1776735044896,-931.87,0.00015616,2]
[420925302,1776735044906,-1468.68,0.00015616,2]
[420925303,1776735044915,-1208.98,0.00015616,2]
[420925304,1776735044926,-909.52,0.00015616,2]
[420925305,1776735044935,-500.0,0.00015616,2]
[420925306,1776735044944,-634.37,0.00015616,2]
[420925307,1776735044954,-500.0,0.00015616,2]
[420925308,1776735044963,-1393.62,0.00015616,2]
[420925309,1776735044972,-1631.25,0.00015616,2]
[420925310,1776735044982,-1034.79,0.00015616,2]
[420925311,1776735044991,-5412.07,0.00015616,2]
[420925312,1776735045003,-1333.09,0.00015616,2]
[420925313,1776735045012,-500.0,0.00015616,2]
[420925314,1776735045022,-1055.62,0.00015616,2]
[420925315,1776735045032,-2738.88,0.00015616,2]
[420925316,1776735045041,-2731.89,0.00015616,2]
[420925317,1776735045051,-500.0,0.00015616,2]
[420925318,1776735045061,-2600.62,0.00015616,2]
[420925319,1776735045070,-2254.44,0.00015616,2]
[420925320,1776735045080,-500.0,0.00015616,2]
[420925321,1776735045089,-2088.86,0.00015616,2]
[420925322,1776735045100,-500.0,0.00015616,2]
[420925323,1776735045111,-3845.39,0.00015616,2]
[420925324,1776735045120,-750.4,0.00015616,2]
[420925325,1776735045130,-2809.13,0.00015616,2]
[420925326,1776735045139,-5431.02,0.00015616,2]
[420925327,1776735045149,-500.0,0.00015616,2]
[420925328,1776735045158,-500.0,0.00015616,2]
[420925329,1776735045168,-500.0,0.00015616,2]
[420925330,1776735045178,-844.1,0.00015616,2]
[420925331,1776735045187,-764.76,0.00015616,2]
[420925332,1776735045196,-500.0,0.00015616,2]
[420925333,1776735045206,-628.08,0.00015616,2]
[420925334,1776735045217,-2269.79,0.00015616,2]
[420925335,1776735045227,-5859.1,0.00015616,2]
[420925336,1776735045236,-2080.85,0.00015616,2]
[420925337,1776735045245,-500.0,0.00015616,2]
[420925338,1776735045255,-500.0,0.00015616,2]
[420925339,1776735045264,-500.0,0.00015616,2]
[420925340,1776735045273,-4245.16,0.00015616,2]
[420925341,1776735045283,-701.39,0.00015616,2]
[420925342,1776735045292,-915.33,0.00015616,2]
[420925343,1776735045302,-3796.29,0.00015616,2]
[420925344,1776735045311,-500.0,0.00015616,2]
[420925345,1776735045321,-23822.54,0.00015616,2]
[420925346,1776735045331,-1937.17,0.00015616,2]
[420925347,1776735045340,-939.33,0.00015616,2]
[420925348,1776735045350,-519.24,0.00015616,2]
[420925349,1776735045360,-2092.51,0.00015616,2]
[420925350,1776735045369,-500.0,0.00015616,2]
[420925351,1776735045379,-500.0,0.00015616,2]
[420925352,1776735045388,-528.23,0.00015616,2]
[420925353,1776735045398,-1690.89,0.00015616,2]
[420925354,1776735045408,-3778.88,0.00015616,2]
[420925355,1776735045418,-1209.507,0.00015616,2]
[420925356,1776735045428,-151.0,0.00015616,2]
[420925357,1776735045438,-224.7619,0.00015616,2]
[420925358,1776735045447,-151.0,0.00015616,2]
[420925359,1776735045457,-151.0,0.00015616,2]
[420925360,1776735045466,-151.0,0.00015616,2]
[420925361,1776735045475,-151.0,0.00015616,2]
[420925362,1776735045485,-151.0,0.00015616,2]
[420925363,1776735045495,-151.0,0.00015616,2]
[420925364,1776735045504,-151.0,0.00015616,2]
[420925365,1776735045513,-151.0,0.00015616,2]
[420925366,1776735045523,-151.0,0.00015616,2]